fUSD/lending_fUSD_20240301
["ID","MTS","AMOUNT","RATE_DAILY","PERIOD"]
[316043970,1709335634022,-500.0,0.00021917,2]
[316043971,1709335634043,-500.0,0.00021917,2]
[316043972,1709335634065,-2783.44,0.00021917,2]
[316043973,1709335634087,-665.46,0.00021917,2]
[316043974,1709335634109,-1064.4,0.00021917,2]
[316043975,1709335634131,-669.17,0.00021917,2]
[316043976,1709335634156,-500.0,0.00021917,2]
[316043977,1709335634176,-500.0,0.00021917,2]
[316043978,1709335634199,-1290.45,0.00021917,2]
[316043979,1709335634222,-541.98,0.00021917,2]
[316043980,1709335634246,-1436.62,0.00021917,2]
[316043981,1709335634267,-500.0,0.00021917,2]
[316043982,1709335634290,-594.61,0.00021917,2]
[316043983,1709335634318,-500.0,0.00021917,2]
[316043984,1709335634341,-2084.36,0.00021917,2]
[316043985,1709335634362,-500.0,0.00021917,2]
[316043986,1709335634384,-500.0,0.00021917,2]
[316043987,1709335634405,-500.0,0.00021917,2]
[316043988,1709335634427,-3353.52,0.00021917,2]
[316043989,1709335634450,-741.85,0.00021917,2]
[316043990,1709335634471,-500.0,0.00021917,2]
[316043991,1709335634494,-892.39,0.00021917,2]
[316043992,1709335634517,-1012.9,0.00021917,2]
[316043993,1709335634538,-500.0,0.00021917,2]
[316043994,1709335634563,-2027.66,0.00021917,2]
[316043995,1709335634584,-370.10675956,0.00021917,2]
[316043996,1709335634605,-500.0,0.00021917,2]
[316043997,1709335634626,-500.0,0.00021917,2]
[316043998,1709335634648,-500.0,0.00021917,2]
[316043999,1709335634669,-500.0,0.00021917,2]
[316044000,1709335634691,-1045.55,0.00021917,2]
[316044001,1709335634715,-567.28,0.00021917,2]
[316044002,1709335634738,-662.67,0.00021917,2]
[316044003,1709335634759,-500.0,0.00021917,2]
[316044004,1709335634781,-500.0,0.00021917,2]
[316044005,1709335634804,-677.72,0.00021917,2]
[316044006,1709335634827,-1794.27,0.00021917,2]
[316044007,1709335634849,-669.05,0.00021917,2]
[316044008,1709335634870,-500.0,0.00021917,2]
[316044009,1709335634892,-790.67,0.00021917,2]
[316044010,1709335634913,-500.0,0.00021917,2]
[316044011,1709335634935,-500.0,0.00021917,2]
[316044012,1709335634957,-561.15,0.00021917,2]
[316044013,1709335634979,-579.6,0.00021917,2]
[316044014,1709335635001,-500.0,0.00021917,2]
[316044015,1709335635023,-500.0,0.00021917,2]
[316044016,1709335635044,-500.0,0.00021917,2]
[316044017,1709335635067,-664.78,0.00021917,2]
[316044018,1709335635088,-500.0,0.00021917,2]
[316044019,1709335635111,-500.0,0.00021917,2]
[316044020,1709335635133,-500.0,0.00021917,2]
[316044021,1709335635158,-500.0,0.00021917,2]
[316044022,1709335635180,-2048.29,0.00021917,2]
[316044023,1709335635201,-500.0,0.00021917,2]
[316044024,1709335635228,-500.0,0.00021917,2]
[316044025,1709335635252,-602.59,0.00021917,2]
[316044026,1709335635274,-2502.47,0.00021917,2]
[316044027,1709335635296,-1068.68,0.00021917,2]
[316044028,1709335635323,-1195.76472429,0.00021917,2]
[316044029,1709335635349,-569.68,0.00021917,2]
[316044030,1709335635372,-500.0,0.00021917,2]
[316044031,1709335635395,-882.93,0.00021917,2]
[316044032,1709335635417,-500.0,0.00021917,2]
[316044033,1709335635439,-500.0,0.00021917,2]
[316044034,1709335635461,-618.05587429,0.00021917,2]
[316044035,1709335635484,-500.0,0.00021917,2]
[316044036,1709335635506,-200.0,0.00021917,2]
[316044037,1709335635529,-671.01,0.00021917,2]
[316044038,1709335635552,-634.74,0.00021917,2]
[316044039,1709335635574,-500.0,0.00021917,2]
[316044040,1709335635597,-978.78,0.00021917,2]
[316044041,1709335635619,-500.0,0.00021917,2]
[316044042,1709335635641,-500.0,0.00021917,2]
[316044043,1709335635663,-500.0,0.00021917,2]
[316044044,1709335635684,-500.0,0.00021917,2]
[316044045,1709335635705,-500.0,0.00021917,2]
[316044046,1709335635727,-590.92,0.00021917,2]
[316044047,1709335635749,-1413.41,0.00021917,2]
[316044048,1709335635773,-2643.91,0.00021917,2]
[316044049,1709335635798,-500.0,0.00021917,2]
[316044050,1709335635823,-500.0,0.00021917,2]
[316044051,1709335635848,-500.0,0.00021917,2]
[316044052,1709335635873,-500.0,0.00021917,2]
[316044053,1709335635896,-500.0,0.00021917,2]
[316044054,1709335635922,-993.91,0.00021917,2]
[316044055,1709335635944,-763.65,0.00021917,2]
[316044056,1709335635967,-691.79,0.00021917,2]
[316044057,1709335635990,-588.18,0.00021917,2]
[316044058,1709335636013,-500.0,0.00021917,2]
[316044059,1709335636043,-500.0,0.00021917,2]
[316044060,1709335636066,-500.0,0.00021917,2]
[316044061,1709335636091,-1284.49,0.00021917,2]
[316044062,1709335636114,-2433.21,0.00021917,2]
[316044063,1709335636137,-500.0,0.00021917,2]
[316044064,1709335636161,-565.36,0.00021917,2]
[316044065,1709335636184,-500.0,0.00021917,2]
[316044066,1709335636206,-500.0,0.00021917,2]
[316044067,1709335636229,-500.0,0.00021917,2]
[316044068,1709335636253,-700.88,0.00021917,2]
[316044069,1709335636277,-2976.78,0.00021917,2]
[316044070,1709335636302,-655.56,0.00021917,2]
[316044071,1709335636324,-500.0,0.00021917,2]
[316044072,1709335636347,-616.56,0.00021917,2]
[316044073,1709335636368,-500.0,0.00021917,2]
[316044074,1709335636390,-1499.61,0.00021917,2]
[316044075,1709335636412,-500.0,0.00021917,2]
[316044076,1709335636434,-500.0,0.00021917,2]
[316044077,1709335636455,-500.0,0.00021917,2]
[316044078,1709335636477,-696.92,0.00021917,2]
[316044079,1709335636499,-1205.99,0.00021917,2]
[316044080,1709335636522,-559.73,0.00021917,2]
[316044081,1709335636546,-1437.31,0.00021917,2]
[316044082,1709335636568,-502.22730338,0.00021917,2]
[316044083,1709335636589,-500.0,0.00021917,2]
[316044084,1709335636613,-500.0,0.00021917,2]
[316044085,1709335636635,-500.0,0.00021917,2]
[316044086,1709335636656,-500.0,0.00021917,2]
[316044087,1709335636677,-500.0,0.00021917,2]
[316044088,1709335636698,-500.0,0.00021917,2]
[316044089,1709335636719,-1194.66,0.00021917,2]
[316044090,1709335636741,-500.0,0.00021917,2]
[316044091,1709335636762,-500.0,0.00021917,2]
[316044092,1709335636784,-1301.42,0.00021917,2]
[316044093,1709335636806,-500.0,0.00021917,2]
[316044094,1709335636829,-808.45,0.00021917,2]
[316044095,1709335636850,-500.0,0.00021917,2]
[316044096,1709335636878,-500.0,0.00021917,2]
[316044097,1709335636900,-1398.4,0.00021917,2]
[316044098,1709335636922,-500.0,0.00021917,2]
[316044099,1709335636945,-1867.93,0.00021917,2]
[316044100,1709335636966,-500.0,0.00021917,2]
[316044101,1709335636990,-621.63,0.00021917,2]
[316044102,1709335637012,-500.0,0.00021917,2]
[316044103,1709335637034,-500.0,0.00021917,2]
[316044104,1709335637058,-500.0,0.00021917,2]
[316044105,1709335637080,-500.0,0.00021917,2]
[316044106,1709335637103,-500.0,0.00021917,2]
[316044107,1709335637131,-500.0,0.00021917,2]
[316044108,1709335637155,-990.55,0.00021917,2]
[316044109,1709335637179,-2566.14,0.00021917,2]
[316044110,1709335637453,-1891.56,0.00021917,2]
[316044111,1709335637476,-500.0,0.00021917,2]
[316044112,1709335637501,-500.0,0.00021917,2]
[316044113,1709335637525,-500.0,0.00021917,2]
[316044114,1709335637547,-500.0,0.00021917,2]
[316044115,1709335637570,-500.0,0.00021917,2]
[316044116,1709335637593,-500.0,0.00021917,2]
[316044117,1709335637616,-500.0,0.00021917,2]
[316044118,1709335637637,-500.0,0.00021917,2]
[316044119,1709335637661,-1391.58,0.00021917,2]
[316044120,1709335637684,-500.0,0.00021917,2]
[316044121,1709335637709,-500.0,0.00021917,2]
[316044122,1709335637731,-1593.91,0.00021917,2]
[316044123,1709335637753,-500.0,0.00021917,2]
[316044124,1709335637776,-500.0,0.00021917,2]
[316044125,1709335637799,-500.0,0.00021917,2]
[316044126,1709335637822,-789.98,0.00021917,2]
[316044127,1709335637844,-500.0,0.00021917,2]
[316044128,1709335637867,-500.0,0.00021917,2]
[316044129,1709335637892,-500.0,0.00021917,2]
[316044130,1709335637917,-500.0,0.00021917,2]
[316044131,1709335637940,-531.98,0.00021917,2]
[316044132,1709335637964,-500.0,0.00021917,2]
[316044133,1709335637987,-500.0,0.00021917,2]
[316044134,1709335638011,-500.0,0.00021917,2]
[316044135,1709335638034,-601.43,0.00021917,2]
[316044136,1709335638056,-500.0,0.00021917,2]
[316044137,1709335638078,-500.0,0.00021917,2]
[316044138,1709335638101,-1185.02,0.00021917,2]
[316044139,1709335638124,-500.0,0.00021917,2]
[316044140,1709335638148,-500.0,0.00021917,2]
[316044141,1709335638173,-500.0,0.00021917,2]
[316044142,1709335638196,-500.0,0.00021917,2]
[316044143,1709335638219,-500.0,0.00021917,2]
[316044144,1709335638242,-500.0,0.00021917,2]
[316044145,1709335638269,-500.0,0.00021917,2]
[316044146,1709335638292,-500.0,0.00021917,2]
[316044147,1709335638316,-500.0,0.00021917,2]
[316044148,1709335638341,-12636.73,0.00021917,2]
[316044149,1709335638365,-7497.79,0.00021917,2]
[316044150,1709335638388,-500.0,0.00021917,2]
[316044151,1709335638410,-500.0,0.00021917,2]
[316044152,1709335638434,-500.0,0.00021917,2]
[316044153,1709335638457,-7899.3,0.00021917,2]
[316044154,1709335638481,-500.0,0.00021917,2]
[316044155,1709335638504,-500.0,0.00021917,2]
[316044156,1709335638527,-500.0,0.00021917,2]
[316044157,1709335638551,-2284.68,0.00021917,2]
[316044158,1709335638575,-500.0,0.00021917,2]
[316044159,1709335638599,-780.31,0.00021917,2]
[316044160,1709335638622,-626.42,0.00021917,2]
[316044161,1709335638646,-7796.84,0.00021917,2]
[316044162,1709335638669,-500.0,0.00021917,2]
[316044163,1709335638694,-2297.7,0.00021917,2]
[316044164,1709335638722,-532.61012059,0.00021917,2]
[316044165,1709335638744,-500.0,0.00021917,2]
[316044166,1709335638767,-500.0,0.00021917,2]
[316044167,1709335638790,-500.0,0.00021917,2]
[316044168,1709335638814,-22032.27,0.00021917,2]
[316044169,1709335638836,-500.0,0.00021917,2]
[316044170,1709335638858,-2052.03,0.00021917,2]
[316044171,1709335638881,-500.0,0.00021917,2]
[316044172,1709335638905,-150.0,0.00021917,2]
[316044173,1709335638928,-500.0,0.00021917,2]
[316044174,1709335638952,-2447.95,0.00021917,2]
[316044175,1709335638977,-500.0,0.00021917,2]
[316044176,1709335639001,-500.0,0.00021917,2]
[316044177,1709335639024,-500.0,0.00021917,2]
[316044178,1709335639047,-766.78,0.00021917,2]
[316044179,1709335639070,-961.08,0.00021917,2]
[316044180,1709335639093,-500.0,0.00021917,2]
[316044181,1709335639117,-1096.25,0.00021917,2]
[316044182,1709335639140,-1405.71,0.00021917,2]
[316044183,1709335639169,-500.0,0.00021917,2]
[316044184,1709335639195,-500.0,0.00021917,2]
[316044185,1709335639219,-500.0,0.00021917,2]
[316044186,1709335639244,-5101.85,0.00021917,2]
[316044187,1709335639267,-761.74,0.00021917,2]
[316044188,1709335639290,-500.0,0.00021917,2]
[316044189,1709335639313,-500.0,0.00021917,2]
[316044190,1709335639340,-511.93827956,0.00021917,2]
[316044191,1709335639364,-500.0,0.00021917,2]
[316044192,1709335639390,-541.28,0.00021917,2]
[316044193,1709335639413,-500.0,0.00021917,2]
[316044194,1709335639437,-518.81637978,0.00021917,2]
[316044195,1709335639461,-500.0,0.00021917,2]
[316044196,1709335639485,-1329.35,0.00021917,2]
[316044197,1709335639507,-500.0,0.00021917,2]
[316044198,1709335639531,-831.5,0.00021917,2]
[316044199,1709335639558,-500.0,0.00021917,2]
[316044200,1709335639582,-1040.95,0.00021917,2]
[316044201,1709335639608,-500.0,0.00021917,2]
[316044202,1709335639632,-503.54662924,0.00021917,2]
[316044203,1709335639657,-568.97,0.00021917,2]
[316044204,1709335639684,-2893.56,0.00021917,2]
[316044205,1709335639709,-500.0,0.00021917,2]
[316044206,1709335639732,-1047.57,0.00021917,2]
[316044207,1709335639756,-500.0,0.00021917,2]
[316044208,1709335639779,-500.0,0.00021917,2]
[316044209,1709335639803,-831.02,0.00021917,2]
[316044210,1709335639826,-500.0,0.00021917,2]
[316044211,1709335639850,-200.0,0.00021918,2]
[316044212,1709335639873,-200.0,0.00021918,2]
[316044213,1709335639896,-917.74600764,0.00021939,2]
[316044214,1709335639923,-157.41,0.00021959,2]
[316044215,1709335639947,-154.47,0.00021969,2]
[316044216,1709335639972,-4035.86101212,0.00021973,2]
[316044217,1709335639994,-561.21437394,0.0002199,2]
[316044218,1709335640018,-500.0,0.00021993,2]
[316044219,1709335640042,-500.0,0.00021993,2]
[316044220,1709335640068,-500.0,0.00021994,2]
[316044221,1709335640092,-500.0,0.00021994,2]
[316044222,1709335640117,-500.0,0.00021994,2]
[316044223,1709335640142,-550722.24738159,0.00021994,4]
[316044224,1709335640166,-59579.7319599,0.00021995,2]
[316044225,1709335640190,-13229.4251399,0.00021995,2]
[316044226,1709335640213,-14143.1154527,0.00021995,2]
[316044227,1709335640236,-9345.9125794,0.00021995,2]
[316044228,1709335640259,-92121.4679242,0.00021995,2]
[316044229,1709335640284,-39770.3467192,0.00021995,2]
[316044230,1709335640308,-845.0,0.00021999,2]
[316044231,1709335640333,-546.51468864,0.00021999,2]
[316044232,1709335640356,-408.69946908,0.00021999,2]
[316044233,1709335640379,-204.73380643,0.00021999,2]
[316044234,1709335640403,-4990.18398372,0.00021999,2]
[316044235,1709335640426,-151.0,0.00021999,7]
[316044236,1709335640449,-151.0,0.00021999,7]
[316044237,1709335640472,-416.38392574,0.00021999,2]
[316044238,1709335640496,-500.0,0.00021999,2]
[316044239,1709335640521,-500.0,0.00021999,2]
[316044240,1709335640547,-500.0,0.00021999,2]
[316044241,1709335640571,-500.0,0.00021999,2]
[316044242,1709335640595,-500.0,0.00021999,2]
[316044243,1709335640618,-500.0,0.00021999,2]
[316044244,1709335640641,-500.0,0.00021999,2]
[316044245,1709335640664,-600.07062946,0.00021999,2]
[316044246,1709335640688,-61632.47968708,0.00022,2]
[316044247,1709335640710,-2999999.966734,0.00022,2]
[316044248,1709335640732,-535.65204036,0.00022,3]
[316044249,1709335641582,1069.0,0.00021917,2]
[316044250,1709335641650,702.4987408,0.0002107,2]
[316044251,1709335641699,500.0,0.00021917,2]
[316044252,1709335641807,500.0,0.00021917,2]
[316044253,1709335641853,160.15027519,0.00021297,2]
[316044254,1709335642241,500.0,0.00021917,2]
[316044255,1709335642303,500.0,0.00021917,2]
[316044256,1709335642513,500.0,0.00021917,2]
[316044257,1709335642916,160.15027519,0.00021373,2]
[316044258,1709335643168,500.0,0.00021917,2]
[316044259,1709335643519,2225.81948448,0.000219,2]
[316044260,1709335643922,500.0,0.00021917,2]
[316044261,1709335644057,500.0,0.00021917,2]
[316044262,1709335644395,500.0,0.00021917,2]
[316044263,1709335644438,500.0,0.00021917,2]
[316044264,1709335644787,500.0,0.00021917,2]
[316044265,1709335644861,160.15027519,0.00021448,2]
[316044266,1709335644905,1015.83,0.00021917,2]
[316044267,1709335645022,672.59,0.00021917,2]
[316044268,1709335645072,1739.11,0.00021917,2]
[316044269,1709335645614,163.2763248,0.00021916,2]
[316044270,1709335645682,300.0,0.00021916,2]
[316044271,1709335646116,500.0,0.00021917,2]
[316044272,1709335646370,160.15027519,0.00021523,2]
[316044273,1709335646399,500.0,0.00021917,2]
[316044274,1709335646658,250.89969134,0.00021917,2]
[316044275,1709335646996,500.0,0.00021917,2]
[316044276,1709335647162,500.0,0.00021917,2]
[316044277,1709335647583,5000.0,0.00021817,2]
[316044278,1709335647651,500.0,0.00021917,2]
[316044279,1709335647692,160.15027519,0.00021599,2]
[316044280,1709335648360,500.0,0.00021917,2]
[316044281,1709335648389,5485.69365072,0.00021916,2]
[316044282,1709335649064,500.0,0.00021917,2]
[316044283,1709335650190,500.0,0.00021917,2]
[316044284,1709335650416,160.15027519,0.00021674,2]
[316044285,1709335650448,275.500561,0.00021895,2]
[316044286,1709335650479,500.0,0.00021917,2]
[316044287,1709335650806,500.0,0.00021917,2]
[316044288,1709335651294,271.146,0.00021817,2]
[316044289,1709335653045,500.0,0.00021917,2]
[316044290,1709335654241,160.15027519,0.00021749,2]
[316044291,1709335654314,275.50056098,0.00021898,2]
[316044292,1709335654465,500.0,0.00021917,2]
[316044293,1709335654574,500.0,0.00021917,2]
[316044294,1709335654623,500.0,0.00021917,2]
[316044295,1709335654689,204.73380643,0.00021999,2]
[316044296,1709335654740,500.0,0.00021917,2]
[316044297,1709335654774,4990.18398372,0.00021999,2]
[316044298,1709335655094,500.0,0.00021917,2]
[316044299,1709335655275,257.76472445,0.00021917,2]
[316044300,1709335655304,160.15027519,0.00021825,2]
[316044301,1709335655334,275.50056098,0.000219,2]
[316044302,1709335655386,500.0,0.00021917,2]
[316044303,1709335655579,500.0,0.00021917,2]
[316044304,1709335655612,500.0,0.00021917,2]
[316044305,1709335656258,296.2943268,0.000219,2]
[316044306,1709335656484,500.0,0.00021917,2]
[316044307,1709335656514,612.51824424,0.00021917,2]
[316044308,1709335656543,500.0,0.00021917,2]
[316044309,1709335656781,160.15027519,0.000219,2]
[316044310,1709335656900,363.02838556,0.00021998,2]
[316044311,1709335657352,500.0,0.00021917,2]
[316044312,1709335657600,495.66161949,0.00021917,2]
[316044313,1709335657638,701.62,0.00021917,2]
[316044314,1709335657670,500.0,0.00021917,2]
[316044315,1709335658100,500.0,0.00021917,2]
[316044316,1709335658290,775.73,0.00021917,2]
[316044317,1709335659215,250.30605529,0.0002178,2]
[316044318,1709335659286,204.73380643,0.00021999,2]
[316044319,1709335659504,1354.52,0.00021917,2]
[316044320,1709335659544,151.0,0.00021993,2]
[316044321,1709335659788,4990.18398372,0.00021999,2]
[316044322,1709335659889,1005.83,0.00021917,2]
[316044323,1709335660778,682.7,0.00021917,2]
[316044324,1709335661491,2042.18,0.00021917,2]
[316044325,1709335661786,1004.81,0.00021917,2]
[316044326,1709335662030,500.0,0.00021917,2]
[316044327,1709335664725,158.39819488,0.00021999,2]
[316044328,1709335664878,500.0,0.00021917,2]
[316044329,1709335664951,500.0,0.00021917,2]
[316044330,1709335665200,4990.18398372,0.00021999,2]
[316044331,1709335665243,970.7,0.00021917,2]
[316044332,1709335667159,519.41,0.00021917,2]
[316044333,1709335667562,496.21629503,0.00021917,2]
[316044334,1709335668360,541.81,0.00021917,2]
[316044335,1709335668779,537.77,0.00021917,2]
[316044336,1709335671259,500.0,0.00021917,2]
[316044337,1709335674319,225.27544976,0.0002178,2]
[316044338,1709335677248,3042.98,0.00021917,2]
[316044339,1709335677572,1155.74,0.00021917,2]
[316044340,1709335677640,215.85016,0.00021917,2]
[316044341,1709335677740,500.0,0.00021917,2]
[316044342,1709335678335,520.72823446,0.00021917,2]
[316044343,1709335679706,1220.47,0.00021917,2]
[316044344,1709335679979,846.14,0.00021917,2]
[316044345,1709335681125,500.0,0.00021917,2]
[316044346,1709335681153,500.0,0.00021917,2]
[316044347,1709335684904,874.06,0.00021917,2]
[316044348,1709335685326,2320.15216333,0.00021999,2]
[316044349,1709335686939,500.0,0.00021917,2]
[316044350,1709335686973,500.0,0.00021917,2]
[316044351,1709335687179,1024.15,0.00021917,2]
[316044352,1709335688022,938.0,0.00021917,2]
[316044353,1709335689271,202.74790478,0.0002178,2]
[316044354,1709335689303,1393.94,0.00021917,2]
[316044355,1709335689508,500.0,0.00021917,2]
[316044356,1709335689659,1559.36,0.00021917,2]
[316044357,1709335689718,500.0,0.00021917,2]
[316044358,1709335690168,2533.74,0.00021917,2]
[316044359,1709335692037,4227.88,0.00021917,2]
[316044360,1709335693388,500.0,0.00021917,2]
[316044361,1709335695066,500.0,0.00021917,2]
[316044362,1709335695103,69578.727,0.00021817,2]
[316044363,1709335696249,776.83,0.00021917,2]
[316044364,1709335696597,500.0,0.00021917,2]
[316044365,1709335697593,514.21,0.00021917,2]
[316044366,1709335697891,4421.3224,0.00021817,2]
[316044367,1709335698015,500.0,0.00021917,2]
[316044368,1709335698049,500.0,0.00021917,2]
[316044369,1709335699008,587.72061023,0.00021926,2]
[316044370,1709335699442,1360.49,0.00021917,2]
[316044371,1709335699757,500.0,0.00021917,2]
[316044372,1709335700474,500.0,0.00021917,2]
[316044373,1709335701917,994.16,0.00021917,2]
[316044374,1709335702123,1275.74,0.00021917,2]
[316044375,1709335703729,500.0,0.00021917,2]
[316044376,1709335703883,500.0,0.00021917,2]
[316044377,1709335704244,182.47311431,0.0002178,2]
[316044378,1709335705330,500.0,0.00021917,2]
[316044379,1709335705374,2873.58,0.00021917,2]
[316044380,1709335705434,500.0,0.00021917,2]
[316044381,1709335705753,2937.99920546,0.00021999,2]
[316044382,1709335705888,705.32,0.00021917,2]
[316044383,1709335708220,500.0,0.00021917,2]
[316044384,1709335708456,500.0,0.00021917,2]
[316044385,1709335708648,500.0,0.00021917,2]
[316044386,1709335708851,58312.8590039,0.00021995,2]
[316044387,1709335709172,1156.48,0.00021917,2]
[316044388,1709335709483,744.66,0.00021917,2]
[316044389,1709335712476,500.0,0.00021917,2]
[316044390,1709335713532,181.30175019,0.00021917,2]
[316044391,1709335713963,206.0,0.00021701,2]
[316044392,1709335714627,924.05,0.00021917,2]
[316044393,1709335714670,606.65,0.00021917,2]
[316044394,1709335715920,500.0,0.00021917,2]
[316044395,1709335716831,500.0,0.00021917,2]
[316044396,1709335717403,631.7,0.00021917,2]
[316044397,1709335718524,1000.0,0.00021817,2]
[316044398,1709335718844,721.92,0.00021917,2]
[316044399,1709335719246,164.22580288,0.0002178,2]
[316044400,1709335720259,500.0,0.00021917,2]
[316044401,1709335720755,500.0,0.00021917,2]
[316044402,1709335721052,500.0,0.00021917,2]
[316044403,1709335721198,714.37,0.00021917,2]
[316044404,1709335722335,2298.04,0.00021917,2]
[316044405,1709335723818,500.0,0.00021917,2]
[316044406,1709335724618,901.0906651,0.000251,120]
[316044407,1709335724844,500.0,0.00021917,2]
[316044408,1709335724964,5000.0,0.00021817,2]
[316044409,1709335725002,625.0,0.00021917,2]
[316044410,1709335725418,2964.69771375,0.00021999,2]
[316044411,1709335726374,2512.32,0.00021917,2]
[316044412,1709335726484,155.0,0.00021917,2]
[316044413,1709335727666,500.0,0.00021917,2]
[316044414,1709335728006,500.0,0.00021917,2]
[316044415,1709335728061,500.0,0.00021917,2]
[316044416,1709335728742,500.0,0.00021917,2]
[316044417,1709335729452,500.0,0.00021917,2]
[316044418,1709335730087,612.22801672,0.00021999,2]
[316044419,1709335730926,1956.72,0.00021917,2]
[316044420,1709335731121,397.89322017,0.00021917,2]
[316044421,1709335731984,5207.94,0.00021917,2]
[316044422,1709335732013,633.89841924,0.00021917,2]
[316044423,1709335732885,693.84,0.00021917,2]
[316044424,1709335733109,1914.07,0.00021917,2]
[316044425,1709335734256,500.0,0.00021917,2]
[316044426,1709335734447,164.22580288,0.0002178,2]
[316044427,1709335734571,500.0,0.00021917,2]
[316044428,1709335735104,810.99,0.00021917,2]
[316044429,1709335735774,500.0,0.00024,60]
[316044430,1709335736108,500.0,0.00021917,2]
[316044431,1709335736824,709.83,0.00021061,2]
[316044432,1709335737201,500.0,0.00021917,2]
[316044433,1709335737570,1981.8282,0.00021926,2]
[316044434,1709335740373,155.0,0.00021917,2]
[316044435,1709335741019,500.0,0.00021917,2]
[316044436,1709335741882,500.0,0.00021917,2]
[316044437,1709335742596,500.0,0.00021917,2]
[316044438,1709335742633,155.68737889,0.00021917,2]
[316044439,1709335743109,891.08,0.00021917,2]
[316044440,1709335743283,1126.35,0.00021917,2]
[316044441,1709335743541,800.0,0.00021973,2]
[316044442,1709335743774,3024.8,0.00021917,2]
[316044443,1709335746318,395.73,0.00021096,2]
[316044444,1709335747338,7900.35,0.00021917,2]
[316044445,1709335747640,500.0,0.00021917,2]
[316044446,1709335748545,500.0,0.00021917,2]
[316044447,1709335749061,672.04,0.00021917,2]
[316044448,1709335749343,164.22580287,0.0002178,2]
[316044449,1709335750941,562.64161473,0.00021917,2]
[316044450,1709335752593,2372.74,0.00021917,2]
[316044451,1709335753119,1169.83,0.00021917,2]
[316044452,1709335754095,7532.36,0.00021917,2]
[316044453,1709335754365,217.770561,0.00021917,2]
[316044454,1709335754974,964.53,0.00021917,2]
[316044455,1709335755239,500.0,0.00021917,2]
[316044456,1709335755850,1603.9,0.00021917,2]
[316044457,1709335757830,500.0,0.00021917,2]
[316044458,1709335758018,508.64,0.00021917,2]
[316044459,1709335758048,500.0,0.00021917,2]
[316044460,1709335758972,500.0,0.00021917,2]
[316044461,1709335760141,500.0,0.00021917,2]
[316044462,1709335761359,2424.23,0.00021917,2]
[316044463,1709335761906,500.0,0.00021917,2]
[316044464,1709335763064,3015.43,0.00021917,2]
[316044465,1709335763104,616.26111907,0.00021999,2]
[316044466,1709335763647,1844.83870912,0.00021985,2]
[316044467,1709335763954,155.0,0.00021999,2]
[316044468,1709335764138,500.0,0.00021917,2]
[316044469,1709335764172,250.0,0.00021065,2]